fUST/lending_fUST_20240303
["ID","MTS","AMOUNT","RATE_DAILY","PERIOD"]
[316246761,1709411445294,-2372.9,0.00023999,2]
[316246762,1709411445303,-2372.9,0.00023999,2]
[316246763,1709411445312,-2372.9,0.00023999,2]
[316246764,1709411445321,-2372.9,0.00023999,2]
[316246765,1709411445364,-2372.9,0.00023999,2]
[316246766,1709411445374,-2372.9,0.00023999,2]
[316246767,1709411445383,-2372.9,0.00023999,2]
[316246768,1709411445393,-2372.9,0.00023999,2]
[316246769,1709411445403,-2372.9,0.00023999,2]
[316246770,1709411445412,-2372.9,0.00023999,2]
[316246771,1709411445422,-2372.9,0.00023999,2]
[316246772,1709411445431,-500.0,0.00023999,2]
[316246773,1709411445440,-500.0,0.00023999,2]
[316246774,1709411445450,-500.0,0.00023999,2]
[316246775,1709411445459,-500.0,0.00023999,2]
[316246776,1709411445468,-386.98781305,0.00023999,2]
[316246777,1709411445478,-2372.9,0.00023999,2]
[316246778,1709411445487,-2372.9,0.00023999,2]
[316246779,1709411445496,-2372.9,0.00023999,2]
[316246780,1709411445506,-2372.9,0.00023999,2]
[316246781,1709411445515,-2372.9,0.00023999,2]
[316246782,1709411445524,-2372.9,0.00023999,2]
[316246783,1709411445534,-2372.9,0.00023999,2]
[316246784,1709411445544,-2372.9,0.00023999,2]
[316246785,1709411445553,-2372.9,0.00023999,2]
[316246786,1709411445562,-2372.9,0.00023999,2]
[316246787,1709411445570,-2373.02859618,0.00023999,2]
[316246788,1709411445579,-500.0,0.00023999,2]
[316246789,1709411445588,-500.0,0.00023999,2]
[316246790,1709411445597,-500.0,0.00023999,2]
[316246791,1709411445606,-500.0,0.00023999,2]
[316246792,1709411445615,-500.0,0.00023999,2]
[316246793,1709411445624,-500.0,0.00023999,2]
[316246794,1709411445633,-500.0,0.00023999,2]
[316246795,1709411445643,-500.0,0.00023999,2]
[316246796,1709411445652,-500.0,0.00023999,2]
[316246797,1709411445662,-500.0,0.00023999,2]
[316246798,1709411445671,-208.23725812,0.00023999,2]
[316246799,1709411445680,-500.0,0.00023999,2]
[316246800,1709411445689,-542.79,0.00023999,2]
[316246801,1709411445698,-500.0,0.00023999,2]
[316246802,1709411445708,-500.0,0.00023999,2]
[316246803,1709411445717,-500.0,0.00023999,2]
[316246804,1709411445726,-500.0,0.00023999,2]
[316246805,1709411445736,-500.0,0.00023999,2]
[316246806,1709411445745,-500.0,0.00023999,2]
[316246807,1709411445754,-500.0,0.00023999,2]
[316246809,1709411445763,-500.0,0.00023999,2]
[316246811,1709411445773,-543.3202914,0.00023999,2]
[316246812,1709411445783,-500.0,0.00023999,2]
[316246813,1709411445794,-500.0,0.00023999,2]
[316246814,1709411445803,-500.0,0.00023999,2]
[316246815,1709411445812,-422.94126363,0.00023999,2]
[316246816,1709411445821,-500.0,0.00023999,2]
[316246817,1709411445830,-500.0,0.00023999,2]
[316246818,1709411445840,-500.0,0.00023999,2]
[316246819,1709411445850,-500.0,0.00023999,2]
[316246820,1709411445859,-483.9448284,0.00023999,2]
[316246821,1709411445868,-500.0,0.00023999,2]
[316246822,1709411445877,-500.0,0.00023999,2]
[316246823,1709411445887,-506.27596737,0.00023999,2]
[316246824,1709411445896,-500.0,0.00023999,2]
[316246826,1709411445905,-500.0,0.00023999,2]
[316246828,1709411445914,-500.0,0.00023999,2]
[316246830,1709411445924,-500.0,0.00023999,2]
[316246831,1709411445933,-500.0,0.00023999,2]
[316246832,1709411445943,-500.0,0.00023999,2]
[316246834,1709411445952,-500.0,0.00023999,2]
[316246835,1709411445965,-500.0,0.00023999,2]
[316246836,1709411445974,-500.0,0.00023999,2]
[316246838,1709411445983,-500.0,0.00023999,2]
[316246839,1709411445993,-503.64082888,0.00023999,2]
[316246840,1709411446002,-500.0,0.00023999,2]
[316246841,1709411446012,-616676.60362599,0.00024,5]
[316246848,1709411446273,-500.0,0.00022598,2]
[316246849,1709411446283,-500.0,0.0002265,2]
[316246850,1709411446295,-500.0,0.00023918,2]
[316246851,1709411446305,-500.0,0.00023997,2]
[316246852,1709411446315,-500.0,0.00023998,2]
[316246853,1709411446324,-500.0,0.00023999,2]
[316246854,1709411446334,-500.0,0.00023999,2]
[316246855,1709411446343,-500.0,0.00023999,2]
[316246856,1709411446352,-500.0,0.00023999,2]
[316246857,1709411446362,-31.01051079,0.00023999,2]
[316246858,1709411447153,-500.0,0.00022597,2]
[316246859,1709411447162,-502.97392599,0.00022597,2]
[316246860,1709411447172,-173.02607401,0.00022649,2]
[316246861,1709411447184,-111.78663987,0.00022649,2]
[316246862,1709411447193,-500.0,0.0002265,2]
[316246863,1709411447203,-500.0,0.00023606,2]
[316246864,1709411447214,-238.45907278,0.00023998,2]
[316246865,1709411447223,-468.98948921,0.00023999,2]
[316246866,1709411447233,-500.0,0.00023999,2]
[316246868,1709411447242,-500.0,0.00023999,2]
[316246869,1709411447253,-500.0,0.00023999,2]
[316246870,1709411447262,-500.0,0.00023999,2]
[316246871,1709411447271,-394.44588268,0.00023999,2]
[316246873,1709411447283,-117.47162868,0.00023999,2]
[316246875,1709411447292,-500.0,0.00023999,2]
[316246877,1709411447303,-500.0,0.00023999,2]
[316246879,1709411447312,-500.0,0.00023999,2]
[316246881,1709411447321,-500.0,0.00023999,2]
[316246883,1709411447330,-500.0,0.00023999,2]
[316246884,1709411447339,-500.0,0.00023999,2]
[316246893,1709411447414,-500.0,0.00023999,2]
[316246895,1709411447424,-500.0,0.00023999,2]
[316246897,1709411447433,-500.0,0.00023999,2]
[316246899,1709411447442,-500.0,0.00023999,2]
[316246901,1709411447450,-261.9,0.00023999,2]
[316246903,1709411447459,-67944.73631721,0.00024,5]
[316246905,1709411447471,-122748.147,0.00024,5]
[316248796,1709412632633,-883.67733257,0.00021802,2]
[316248797,1709412632643,-324.78278527,0.00021802,2]
[316248798,1709412632652,-155.04341216,0.00021803,2]
[316248799,1709412632661,-280.28110387,0.00021803,2]
[316248800,1709412632671,-155.04341216,0.00021804,2]
[316248801,1709412632680,-697.26958026,0.00021804,2]
[316248802,1709412632689,-6955.5322314,0.00021804,2]
[316248803,1709412632701,-1863.57471211,0.00021804,2]
[316248804,1709412632712,-567.89157405,0.00021804,2]
[316248805,1709412632724,-863.96498111,0.00021804,2]
[316248806,1709412632734,-317.26763001,0.00021805,2]
[316248807,1709412632744,-744.79129449,0.00021805,2]
[316248808,1709412632753,-155.04341216,0.00021805,2]
[316248809,1709412632762,-155.04341216,0.00021806,2]
[316248810,1709412632771,-214.50892528,0.00021807,2]
[316248811,1709412632780,-20843.89309107,0.00021807,2]
[316248812,1709412632789,-8011.10191863,0.00021808,2]
[316248813,1709412632798,-662.81191697,0.0002183,2]
[316248814,1709412632807,-500.0,0.00021891,2]
[316248815,1709412632816,-500.0,0.00021891,2]
[316248816,1709412632826,-6947.7443576,0.00021892,2]
[316248817,1709412632835,-598.47131177,0.000219,2]
[316248818,1709412632844,-1007.22959258,0.00021965,2]
[316248819,1709412632854,-464.4930495,0.00022452,3]
[316248820,1709412632863,-359.14530672,0.00022452,3]
[316248821,1709412632872,-321.65,0.00022587,3]
[316248822,1709412632881,-160.83,0.00022587,3]
[316248823,1709412632890,-482.5,0.00022587,3]
[316248824,1709412632907,-500.0,0.00022595,2]
[316248825,1709412632919,-455.32076236,0.00022595,2]
[316248826,1709412632929,-505.98777595,0.00022595,2]
[316248827,1709412632939,-500.0,0.00022595,2]
[316248828,1709412632948,-500.0,0.00022595,2]
[316248829,1709412632958,-207.63249256,0.00022595,2]
[316248830,1709412632968,-500.0,0.00022595,2]
[316248831,1709412632977,-500.0,0.00022595,2]
[316248832,1709412632987,-500.0,0.00022595,2]
[316248833,1709412632997,-500.0,0.00022595,2]
[316248834,1709412633006,-500.0,0.00022595,2]
[316248835,1709412633015,-183.19439171,0.00022595,2]
[316248836,1709412633025,-500.0,0.00022595,2]
[316248837,1709412633034,-500.0,0.00022595,2]
[316248838,1709412633043,-500.0,0.00022595,2]
[316248839,1709412633053,-500.0,0.00022595,2]
[316248840,1709412633062,-501.50739568,0.00022595,2]
[316248841,1709412633073,-500.0,0.00022595,2]
[316248842,1709412633083,-500.0,0.00022595,2]
[316248843,1709412633091,-500.0,0.00022595,2]
[316248845,1709412633101,-500.0,0.00022595,2]
[316248847,1709412633110,-500.0,0.00022595,2]
[316248849,1709412633119,-500.16770572,0.00022596,2]
[316248851,1709412633129,-500.0,0.00022596,2]
[316248853,1709412633139,-444.69559985,0.00022596,2]
[316248855,1709412633148,-500.0,0.00022596,2]
[316248857,1709412633157,-500.0,0.00022596,2]
[316248858,1709412633167,-500.0,0.00022596,2]
[316248859,1709412633176,-500.0,0.00022596,2]
[316248860,1709412633186,-500.0,0.00022596,2]
[316248861,1709412633196,-500.0,0.00022596,2]
[316248862,1709412633205,-500.0,0.00022596,2]
[316248863,1709412633216,-500.0,0.00022596,2]
[316248864,1709412633225,-500.0,0.00022596,2]
[316248865,1709412633235,-500.00000001,0.00022596,2]
[316248866,1709412633246,-500.0,0.00022596,2]
[316248867,1709412633255,-500.0,0.00022596,2]
[316248869,1709412633264,-500.0,0.00022596,2]
[316248871,1709412633274,-500.0,0.00022596,2]
[316248872,1709412633285,-500.0,0.00022596,2]
[316248873,1709412633298,-500.0,0.00022596,2]
[316248874,1709412633308,-500.0,0.00022596,2]
[316248876,1709412633318,-500.0,0.00022596,2]
[316248877,1709412633331,-500.0,0.00022596,2]
[316248879,1709412633341,-500.0,0.00022596,2]
[316248881,1709412633351,-500.0,0.00022596,2]
[316248882,1709412633362,-500.0,0.00022596,2]
[316248884,1709412633373,-509.74,0.00022596,2]
[316248886,1709412633384,-500.0,0.00022596,2]
[316248888,1709412633393,-1066.21,0.00022596,2]
[316248890,1709412633403,-500.0,0.00022596,2]
[316248892,1709412633412,-500.0,0.00022596,2]
[316248894,1709412633422,-500.0,0.00022596,2]
[316248896,1709412633432,-772.36,0.00022596,2]
[316248898,1709412633441,-61.46134145,0.00022596,2]
[316249426,1709412638809,-438.53865855,0.00022596,2]
[316249428,1709412638818,-500.0,0.00022596,2]
[316249430,1709412638828,-996.72,0.00022596,2]
[316249432,1709412638836,-500.0,0.00022596,2]
[316249434,1709412638845,-500.0,0.00022596,2]
[316249435,1709412638854,-500.0,0.00022596,2]
[316249436,1709412638863,-500.0,0.00022596,2]
[316249437,1709412638872,-500.0,0.00022596,2]
[316249438,1709412638882,-500.0,0.00022596,2]
[316249439,1709412638891,-500.0,0.00022596,2]
[316249440,1709412638901,-500.0,0.00022596,2]
[316249441,1709412638910,-502.43345678,0.00022596,2]
[316249443,1709412638919,-500.0,0.00022596,2]
[316249445,1709412638929,-500.0,0.00022596,2]
[316249447,1709412638939,-500.0,0.00022597,2]
[316249449,1709412638948,-500.0,0.00022597,2]
[316249450,1709412638957,-511.50970154,0.00022597,2]
[316249451,1709412638966,-372.69581787,0.00022597,2]
[316249453,1709412638975,-301.40434877,0.00022597,2]
[316249455,1709412638984,-500.0,0.00022597,2]
[316249457,1709412638994,-500.0,0.00022597,2]
[316249458,1709412639004,-500.0,0.00022597,2]
[316249460,1709412639014,-500.0,0.00022597,2]
[316249462,1709412639024,-500.0,0.00022597,2]
[316249464,1709412639034,-500.0,0.00022597,2]
[316249466,1709412639043,-500.0,0.00022597,2]
[316249468,1709412639053,-500.0,0.00022597,2]
[316249470,1709412639062,-500.0,0.00022597,2]
[316249472,1709412639071,-190.55274162,0.00022597,2]
[316249474,1709412639081,-500.0,0.00022597,2]
[316249476,1709412639090,-500.0,0.00022597,2]
[316249478,1709412639099,-500.0,0.00022597,2]
[316249480,1709412639108,-500.0,0.00022597,2]
[316249482,1709412639116,-323.53288608,0.00022597,2]
[316249484,1709412639125,-500.0,0.00022597,2]
[316249486,1709412639135,-637.90731622,0.00022597,2]
[316249488,1709412639144,-169.36127377,0.00022597,2]
[316249490,1709412639153,-545.31957941,0.00022597,2]
[316249492,1709412639162,-500.0,0.00022597,2]
[316249494,1709412639172,-500.0,0.00022597,2]
[316249496,1709412639180,-226.12017368,0.00022597,2]
[316249498,1709412639190,-500.0,0.00022597,2]
[316249500,1709412639198,-445.69638556,0.00022597,2]
[316249502,1709412639207,-500.0,0.00022597,2]
[316249504,1709412639216,-500.0,0.00022597,2]
[316249506,1709412639225,-500.0,0.00022597,2]
[316249508,1709412639234,-500.0,0.00022597,2]
[316249510,1709412639244,-208.23725812,0.00022597,2]
[316249511,1709412639253,-500.0,0.00022597,2]
[316249513,1709412639262,-500.0,0.00022597,2]
[316249515,1709412639273,-542.79,0.00022597,2]
[316249516,1709412639282,-500.0,0.00022597,2]
[316249518,1709412639292,-500.0,0.00022597,2]
[316249520,1709412639304,-500.0,0.00022597,2]
[316249521,1709412639313,-500.0,0.00022597,2]
[316249522,1709412639323,-500.94401187,0.00022597,2]
[316249523,1709412639333,-500.0,0.00022597,2]
[316249524,1709412639342,-500.0,0.00022597,2]
[316249525,1709412639352,-500.0,0.00022597,2]
[316249526,1709412639361,-500.0,0.00022597,2]
[316249527,1709412639371,-500.0,0.00022597,2]
[316249528,1709412639383,-500.0,0.00022597,2]
[316249529,1709412639395,-500.0,0.00022597,2]
[316249530,1709412639405,-500.0,0.00022597,2]
[316249531,1709412639414,-500.0,0.00022597,2]
[316249532,1709412639424,-500.0,0.00022597,2]
[316249533,1709412639433,-500.0,0.00022597,2]
[316249534,1709412639444,-500.97694553,0.00022597,2]
[316249535,1709412639453,-500.4547661,0.00022597,2]
[316249536,1709412639463,-500.0,0.00022597,2]
[316249537,1709412639473,-500.0,0.00022597,2]
[316249538,1709412639482,-500.62047562,0.00022597,2]
[316249539,1709412639494,-500.0,0.00022597,2]
[316249540,1709412639503,-500.0,0.00022597,2]
[316249541,1709412639512,-500.0,0.00022597,2]
[316249542,1709412639521,-500.0,0.00022597,2]
[316249543,1709412639530,-205.93957906,0.00022597,2]
[316249544,1709412639539,-500.0,0.00022597,2]
[316249545,1709412639548,-599.81235075,0.00022597,2]
[316249546,1709412639558,-606.40277477,0.00022597,2]
[316249547,1709412639568,-500.0,0.00022597,2]
[316249548,1709412639577,-500.0,0.00022597,2]
[316249549,1709412639586,-500.0,0.00022597,2]
[316249550,1709412639595,-500.0,0.00022597,2]
[316249551,1709412639604,-2000.54,0.00022597,2]
[316249552,1709412639613,-500.0,0.00022597,2]
[316249553,1709412639623,-500.0,0.00022597,2]
[316249554,1709412639632,-500.0,0.00022597,2]
[316249555,1709412639641,-500.0,0.00022597,2]
[316249556,1709412639650,-500.0,0.00022597,2]
[316249557,1709412639659,-500.0,0.00022597,2]
[316249558,1709412639669,-500.0,0.00022597,2]
[316249559,1709412639679,-500.0,0.00022597,2]
[316249560,1709412639688,-500.0,0.00022597,2]
[316249561,1709412639697,-500.0,0.00022597,2]
[316249562,1709412639707,-500.0,0.00022597,2]
[316249563,1709412639717,-500.0,0.00022597,2]
[316249564,1709412639726,-500.0,0.00022597,2]
[316249565,1709412639735,-500.0,0.00022597,2]
[316249566,1709412639743,-1000.0,0.00022597,2]
[316249567,1709412639752,-500.0,0.00022597,2]
[316249568,1709412639761,-500.96141887,0.00022597,2]
[316249569,1709412639770,-500.0,0.00022597,2]
[316249570,1709412639779,-502.19567428,0.00022597,2]
[316249571,1709412639789,-502.94782916,0.00022598,2]
[316249572,1709412639798,-500.0,0.00022598,2]
[316249573,1709412639807,-500.0,0.00022598,2]
[316249574,1709412639817,-500.0,0.00022598,2]
[316249575,1709412639827,-283.5065461,0.00022598,2]
[316249576,1709412639838,-500.0,0.00022648,2]
[316249577,1709412639847,-500.0,0.00022648,2]
[316249578,1709412639856,-500.0,0.00022648,2]
[316249579,1709412639865,-500.0,0.00022648,2]
[316249580,1709412639874,-500.0,0.00022648,2]
[316249581,1709412639883,-500.0,0.00022648,2]
[316249582,1709412639892,-500.0,0.00022648,2]
[316249583,1709412639902,-500.0,0.00022648,2]
[316249584,1709412639911,-500.0,0.00022648,2]
[316249585,1709412639920,-500.0,0.00022648,2]
[316249586,1709412639930,-500.0,0.00022648,2]
[316249587,1709412639939,-279.71027242,0.00022648,2]
[316249588,1709412639948,-500.0,0.00022648,2]
[316249589,1709412639957,-509.74,0.00022648,2]
[316249590,1709412639966,-1066.21,0.00022648,2]
[316249591,1709412639975,-500.0,0.00022648,2]
[316249592,1709412639985,-500.0,0.00022648,2]
[316249593,1709412639994,-500.0,0.00022648,2]
[316249595,1709412640003,-500.0,0.00022648,2]
[316249596,1709412640012,-996.72,0.00022648,2]
[316249597,1709412640021,-500.0,0.00022648,2]
[316249598,1709412640031,-500.0,0.00022648,2]
[316249599,1709412640040,-500.0,0.00022648,2]
[316249600,1709412640049,-500.0,0.00022648,2]
[316249601,1709412640058,-500.0,0.00022648,2]
[316249602,1709412640068,-449.86323283,0.00022648,2]
[316249603,1709412640078,-500.0,0.00022648,2]
[316249604,1709412640087,-500.0,0.00022649,2]
[316249605,1709412640096,-500.0,0.00022649,2]
[316249606,1709412640106,-500.0,0.00022649,2]
[316249607,1709412640115,-500.0,0.00022649,2]
[316249608,1709412640124,-500.0,0.00022649,2]
[316249609,1709412640133,-500.0,0.00022649,2]
[316249610,1709412640143,-500.0,0.00022649,2]
[316249611,1709412640151,-500.0,0.00022649,2]
[316249612,1709412640161,-500.0,0.00022649,2]
[316249613,1709412640170,-500.0,0.00022649,2]
[316249614,1709412640179,-500.0,0.00022649,2]
[316249615,1709412640189,-500.0,0.00022649,2]
[316249616,1709412640198,-398.21029264,0.00022649,2]
[316249617,1709412640208,-500.0,0.00022649,2]
[316249618,1709412640217,-500.0,0.00022649,2]
[316249619,1709412640227,-505.986125,0.00022649,2]
[316249620,1709412640236,-493.0,0.00022649,2]
[316249621,1709412640245,-500.0,0.00022649,2]
[316249622,1709412640254,-500.0,0.00022649,2]
[316249623,1709412640263,-500.0,0.00022649,2]
[316249624,1709412640271,-500.0,0.00022649,2]
[316249625,1709412640281,-500.0,0.00022649,2]
[316249626,1709412640294,-500.0,0.00022649,2]
[316249627,1709412640303,-500.0,0.00022649,2]
[316249628,1709412640312,-500.0,0.00022649,2]
[316249629,1709412640321,-503.64082888,0.00022649,2]
[316249630,1709412640335,-500.0,0.00022649,2]
[316249631,1709412640345,-500.0,0.00022649,2]
[316249632,1709412640354,-540.43198909,0.00022649,2]
[316249633,1709412640363,-500.0,0.00022649,2]
[316249634,1709412640373,-164.74,0.00022649,2]
[316249635,1709412640382,-500.0,0.00022649,2]
[316249636,1709412640392,-500.0,0.00022649,2]
[316249637,1709412640401,-2000.54,0.00022649,2]
[316249638,1709412640410,-500.0,0.00022649,2]
[316249639,1709412640419,-500.0,0.00022649,2]
[316249640,1709412640428,-500.0,0.00022649,2]
[316249641,1709412640437,-500.0,0.00022649,2]
[316249642,1709412640446,-500.0,0.00022649,2]
[316249643,1709412640455,-500.0,0.00022708,2]
[316249644,1709412640465,-551.46,0.00022708,2]
[316249645,1709412640474,-500.0,0.00022708,2]
[316249646,1709412640483,-500.0,0.00022708,2]
[316249647,1709412640492,-500.0,0.00022708,2]
[316249648,1709412640501,-500.0,0.00022708,2]
[316249649,1709412640513,-500.0,0.00022708,2]
[316249650,1709412640522,-500.0,0.00022708,2]
[316249651,1709412640531,-480.07,0.00022709,2]
[316249652,1709412640540,-515.57,0.00022709,2]
[316249653,1709412640549,-500.0,0.00022709,2]
[316249654,1709412640558,-300.32450984,0.00022709,2]
[316249655,1709412640568,-500.0,0.00022709,2]
[316249656,1709412640577,-500.0,0.00022709,2]
[316249657,1709412640585,-500.0,0.00022709,2]
[316249658,1709412640594,-154.29,0.00022709,2]
[316249659,1709412640603,-500.0,0.00022709,2]
[316249660,1709412640613,-500.0,0.00022709,2]
[316249661,1709412640622,-500.0,0.00022709,2]
[316249662,1709412640631,-500.0,0.00022709,2]
[316249663,1709412640641,-500.0,0.00022709,2]
[316249664,1709412640650,-500.0,0.00022709,2]
[316249665,1709412640659,-500.0,0.00022709,2]
[316249666,1709412640668,-500.0,0.00022709,2]
[316249667,1709412640678,-500.0,0.00022709,2]
[316249668,1709412640688,-500.0,0.00022709,2]
[316249669,1709412640697,-2000.54,0.00022709,2]
[316249670,1709412640706,-500.0,0.00022709,2]
[316249671,1709412640715,-260.25765248,0.00022709,2]
[316249672,1709412640725,-500.0,0.00022709,2]
[316249673,1709412640735,-308.57971767,0.00022709,2]
[316249674,1709412640743,-500.0,0.00022718,2]
[316249675,1709412640753,-500.0,0.00022718,2]
[316249676,1709412640762,-500.0,0.00022718,2]
[316249677,1709412640771,-500.0,0.00022718,2]
[316249678,1709412640780,-500.0,0.00022718,2]
[316249679,1709412640789,-500.0,0.00022718,2]
[316249680,1709412640798,-500.0,0.00022718,2]
[316249681,1709412640807,-500.0,0.00022718,2]
[316249682,1709412640816,-500.0,0.00022719,2]
[316249683,1709412640827,-500.0,0.00022719,2]
[316249684,1709412640836,-2000.54,0.00022719,2]
[316249685,1709412640845,-500.0,0.00022719,2]
[316249686,1709412640855,-1390.0133595,0.0002272,3]
[316249687,1709412640864,-1021.62312771,0.0002272,4]
[316249688,1709412640874,-519.8252556,0.0002272,4]
[316249689,1709412640883,-2486.1282234,0.0002272,4]
[316249690,1709412640892,-155.0,0.000228,2]
[316249691,1709412640901,-153.0,0.00023041,2]
[316249692,1709412640910,-306.0,0.00023141,2]
[316249693,1709412640919,-153.0,0.00023178,2]
[316249694,1709412640928,-200.6117409,0.00023178,2]
[316249695,1709412640937,-153.0,0.00023178,2]
[316249696,1709412640946,-394.62118189,0.00023505,2]
[316249697,1709412640955,-394.62118188,0.00023604,2]
[316249698,1709412640964,-500.0,0.00023604,2]
[316249699,1709412640974,-500.0,0.00023605,2]
[316249700,1709412640983,-546.71,0.00023605,2]
[316249701,1709412640992,-500.0,0.00023605,2]
[316249702,1709412641002,-422.94126363,0.00023605,2]
[316249703,1709412641094,-500.0,0.00023605,2]
[316249704,1709412641104,-500.0,0.00023605,2]
[316249705,1709412641113,-500.0,0.00023605,2]
[316249706,1709412641122,-500.0,0.00023605,2]
[316249707,1709412641131,-500.0,0.00023605,2]
[316249708,1709412641141,-250.92,0.00023605,2]
[316249709,1709412641150,-5000.0,0.00023693,5]
[316249710,1709412641159,-394.62118188,0.00023703,2]
[316249711,1709412641168,-340.31,0.00023799,2]
[316249712,1709412641177,-340.31,0.00023799,2]
[316249713,1709412641187,-340.31,0.00023799,2]
[316249714,1709412641196,-340.31,0.00023799,2]
[316249715,1709412641205,-340.31,0.00023799,2]
[316249716,1709412641213,-340.31,0.00023799,2]
[316249717,1709412641222,-340.31,0.00023799,2]
[316249718,1709412641231,-340.31,0.00023799,2]
[316249719,1709412641240,-340.31,0.00023799,2]
[316249720,1709412641250,-340.31,0.00023799,2]
[316249721,1709412641259,-178.75155985,0.00023799,2]
[316249722,1709412641268,-500.0,0.00023799,2]
[316249723,1709412641277,-500.0,0.00023799,2]
[316249724,1709412641289,-648.5,0.00023799,2]
[316249725,1709412641301,-500.0,0.00023799,2]
[316249726,1709412641311,-500.0,0.00023799,2]
[316249727,1709412641320,-500.0,0.00023799,2]
[316249728,1709412641330,-500.0,0.00023799,2]
[316249729,1709412641341,-500.0,0.00023799,2]
[316249730,1709412641350,-500.0,0.00023799,2]
[316249731,1709412641359,-500.0,0.00023799,2]
[316249732,1709412641369,-500.0,0.00023799,2]
[316249733,1709412641379,-500.0,0.00023799,2]
[316249734,1709412641390,-500.0,0.00023799,2]
[316249735,1709412641399,-500.0,0.00023799,2]
[316249736,1709412641409,-500.0,0.00023799,2]
[316249737,1709412641418,-500.0,0.00023799,2]
[316249738,1709412641427,-500.0,0.00023799,2]
[316249739,1709412641436,-500.0,0.00023799,2]
[316249740,1709412641445,-500.0,0.00023799,2]
[316249742,1709412641455,-500.0,0.00023799,2]
[316249744,1709412641464,-500.0,0.00023799,2]
[316249746,1709412641472,-468.24,0.00023799,2]
[316249748,1709412641482,-500.0,0.00023799,2]
[316249750,1709412641491,-500.0,0.00023799,2]
[316249752,1709412641501,-102453.96987687,0.000238,12]
[316249754,1709412641510,-394.62118188,0.00023801,2]
[316249756,1709412641519,-500.0,0.00023817,2]
[316249758,1709412641528,-492.15,0.00023817,2]
[316249760,1709412641537,-500.0,0.00023817,2]
[316249762,1709412641546,-500.0,0.00023817,2]
[316249764,1709412641555,-500.0,0.00023817,2]
[316249766,1709412641564,-500.0,0.00023818,2]
[316249768,1709412641573,-2000.54,0.00023818,2]
[316249770,1709412641583,-500.0,0.00023896,2]
[316249772,1709412641592,-500.0,0.00023896,2]
[316249774,1709412641601,-500.0,0.00023896,2]
[316249776,1709412641610,-500.0,0.00023896,2]
[316249778,1709412641619,-500.0,0.00023896,2]
[316249779,1709412641629,-772.36,0.00023896,2]
[316249782,1709412641638,-500.0,0.00023898,2]
[316249784,1709412641647,-500.0,0.00023899,2]
[316249785,1709412641656,-500.0,0.00023899,2]
[316249787,1709412641666,-500.0,0.00023899,2]
[316249789,1709412641674,-500.0,0.00023899,2]
[316249792,1709412641687,-509.74,0.00023899,2]
[316249793,1709412641696,-1066.21,0.00023899,2]
[316249795,1709412641705,-500.0,0.00023899,2]
[316249797,1709412641715,-500.0,0.00023899,2]
[316249800,1709412641724,-500.0,0.00023899,2]
[316249802,1709412641733,-996.72,0.00023899,2]
[316249804,1709412641742,-500.0,0.00023899,2]
[316249806,1709412641751,-500.0,0.00023899,2]